Cogmind - Beta 17 @@@ ROGUE MODE // 2026.07.10 @ 23:50:51 Player: Thanatos Result: Destroyed by FR-FUS(h) with Battle Rifle Performance ------------- Evolutions (0) 0 Regions Visited (2) 400 Robots Destroyed (4) 20 Value Destroyed (112) 112 Prototype IDs (2) 40 Alien Tech Used (0) 0 Bonus (0) 0 TOTAL SCORE: 572 Bonus ------- None Cogmind --------- Core Integrity 0/250 Matter 298/300 Energy 100/100 System Corruption 2% Temperature Cool (0) Movement Core (200) Ox3 Location -10/Subcaves Parts ------- > --- POWER (1) -------- (None) > --- PROPULSION (2) --- (None) > --- UTILITY (2) ------ Medium Storage Unit > --- WEAPON (2) ------- (None) > --- INVENTORY (10) --- Ion Engine Light Ion Engine Aluminum Leg Flight Unit Heat Sink Medium Storage Unit Large Matter Pod (71) Visual Processing Unit Scrap Shield Peak State ------------ > --- POWER ------------ Light Ion Engine > --- PROPULSION ------- Aluminum Leg Aluminum Leg > --- UTILITY ---------- Visual Processing Unit Visual Processing Unit > --- WEAPON ----------- Shotgun Shotgun > --- INVENTORY -------- Ion Engine Medium Laser Small Laser [Rating: 11] Favorites ----------- Power Light Ion Engine Engine Light Ion Engine Propulsion Aluminum Leg Leg Aluminum Leg Wheel Wheel Utility Medium Storage Unit Device Seismic Detector Storage Medium Storage Unit Processor Visual Processing Unit Weapon Shotgun Energy Gun Medium Laser Ballistic Gun Shotgun Launcher Grenade Launcher Build | -11 -10 -10 ------- Run | Yrd Mat Sub Slots Evolved . | . . . Power . | . . . Propulsion . | . . . Utility . | . . . Weapon . | . . . Parts Attached 18 | 9 9 . Power 1 | 1 . . Engine 1 | 1 . . Core . | . . . Reactor . | . . . Propulsion 4 | 4 . . Treads . | . . . Leg 2 | 2 . . Wheel 2 | 2 . . Hover . | . . . Flight . | . . . Utility 6 | . 6 . Device 2 | . 2 . Storage 2 | . 2 . Processor 2 | . 2 . Hackware . | . . . Protection . | . . . Artifact . | . . . Weapon 7 | 4 3 . Energy Gun 4 | 4 . . Energy Cannon . | . . . Ballistic Gun 2 | . 2 . Ballistic Cannon . | . . . Launcher 1 | . 1 . Special Weapon . | . . . Impact Weapon . | . . . Slashing Weapon . | . . . Piercing Weapon . | . . . Special Melee Weapon . | . . . Unidentified Prototypes . | . . . Parts Lost 6 | . . 6 Power 1 | . . 1 Propulsion 2 | . . 2 Utility 1 | . . 1 Weapon 2 | . . 2 Highest Loss Streak 5 | . . 5 To Critical Strikes . | . . . Average Backups 6 | 2 6 8 Power . | . 1 1 Propulsion 1 | 1 1 2 Utility 3 | . 3 5 Weapon . | . 1 . Tool/Special . | . . . Unused Backups 10 | . 3 7 Power 1 | . . 1 Propulsion 4 | . 2 2 Utility 5 | . 1 4 Weapon . | . . . Tool/Special . | . . . Average Slot Usage (%) 92 | . 93 84 Engine 13 | . 14 11 Leg 27 | . 28 25 Device 3 | . 3 5 Storage 10 | . 10 14 Processor 7 | . 9 . Energy Gun 4 | . 5 . Ballistic Gun 15 | . 15 12 Launcher 7 | . 6 12 Peak Build Rating 11 | 5 11 9 Average Rating 7 | 3 8 7 On Entrance 4 | . 5 9 Avg Prop Armor Cover (%) . | . . . Naked Turns . | . . . Heaviest Build 20 | 7 20 20 Greatest Support 20 | 20 20 20 Greatest Overweight (x) 3 | . . 3 Average Overweight (x) . | . . . Largest Inventory Capacity 10 | 5 10 10 Average Capacity 7 | 5 7 10 Most Carried 10 | 5 10 10 Average Carried 6 | 2 6 9 Final Capacity 10 | 5 10 10 Final Carried 10 | 5 9 10 Class Distribution -------------------- 100% | Mutant Dominant Class ---------------- Mutant | -10/Materials Mutant | -10/Subcaves Resources | -11 -10 -10 ----------- Run | Yrd Mat Sub Matter Collected 549 | 327 148 74 Remotely . | . . . Salvage Created 119 | 48 71 . Parts 9 | 3 3 3 Haulers Intercepted . | . . . Recyclers Shooed . | . . . Parts Field Recycled . | . . . Retrieved Matter . | . . . Parts Self-Destructed 12 | . . 12 Prevented . | . . . Parts Restored . | . . . Kills | -11 -10 -10 ------- Run | Yrd Mat Sub Combat Hostiles Destroyed 4 | 1 2 1 Guns 3 | 1 2 . AOE 1 | . . 1 Classes Destroyed 2 | 1 . 1 Swarmer 1 | . . 1 Grunt 3 | 1 2 . Best Kill Streak 2 | 1 2 1 Combat Bots Only 2 | 1 2 1 Max Kills in Single Turn 1 | 1 1 1 Gunslinging . | . . . Exploded 1 | . . 1 Melee . | . . . Uniques/NPCs Destroyed . | . . . Combat | -11 -10 -10 -------- Run | Yrd Mat Sub Hostile Shots Fired 118 | 12 4 102 Missed 47 | 2 2 43 Hits 71 | 10 2 59 Projectile 71 | 10 2 59 Critical Strikes 1 | . . 1 Damage Taken 827 | 109 65 653 Core 255 | 43 35 177 Absorbed by Shields . | . . . Core Remaining (%) 82 | 82 . . Volleys Fired 13 | 8 2 3 Largest 2 | 2 2 2 Hottest 90 | 90 73 53 Shots Fired 26 | 16 4 6 Gun 23 | 16 4 3 Cannon . | . . . Launcher 3 | . . 3 Special . | . . . Kinetic 5 | . 2 3 Thermal 10 | 8 2 . Explosive 3 | . . 3 Electromagnetic 8 | 8 . . Robot Hit Streak 5 | 2 5 . Robot Miss Streak 2 | 2 1 . Penetration Max . | . . . Secondary Targets . | . . . Shots Hit Robots 12 | 9 3 . Core Hits 12 | 2 4 6 Critical Kills . | . . . Critical Parts Destroyed . | . . . Critical Strikes 1 | 1 . . Corrupt 1 | 1 . . Melee Attacks . | . . . Impact . | . . . Slashing . | . . . Piercing . | . . . Sneak Attacks . | . . . Combat Hostiles . | . . . Follow-up Attacks . | . . . Damage Inflicted 266 | 131 45 90 Guns 176 | 131 45 . Cannons . | . . . Explosions 90 | . . 90 Melee . | . . . Ramming . | . . . Kinetic 33 | . 33 . Thermal 62 | 50 12 . Explosive 90 | . . 90 Electromagnetic 81 | 81 . . Impact . | . . . Slashing . | . . . Piercing . | . . . Highest Corruption 2 | . . 2 Average Corruption 2 | . . 2 Corruption Purged . | . . . Corruption Blocked . | . . . Effects 2 | . . 2 Message Errors 1 | . . 1 Energy Discharges 1 | . . 1 Overload Shots . | . . . Overflow Damage . | . . . Projectiles . | . . . Explosions . | . . . Melee . | . . . Knockbacks . | . . . Impact . | . . . Kinetic . | . . . Secondary . | . . . Self-Inflicted Damage . | . . . Shots . | . . . Rammed . | . . . Targets Rammed . | . . . Kicked . | . . . Crushed . | . . . Highest Temperature 280 | 280 24 . Average Temperature 131 | 153 13 . Received Heat Transfer 297 | 60 12 225 Siege Activations . | . . . Martial Activations . | . . . Shielding Activations . | . . . Robots Disrupted . | . . . Combat Hostiles . | . . . Robots Corrupted . | . . . Combat Hostiles . | . . . Parts Fried 1 | 1 . . Impact Corruptions . | . . . Robots Melted . | . . . Combat Hostiles . | . . . Parts Melted 1 | 1 . . Heat Transferred 185 | 148 37 . Parts Sabotaged . | . . . Parts Stolen . | . . . Parts Stripped . | . . . Power Chain Reactions . | . . . Alert | -11 -10 -10 ------- Run | Yrd Mat Sub Maximum Alert Level . | . . . Low Security (%) 100 | 100 100 . Level 1 . | . . . Level 2 . | . . . Level 3 . | . . . Level 4 . | . . . Level 5 . | . . . High Security . | . . . Max Security . | . . . Peak Influence 40 | 20 40 . Initial 6 | . 6 . Average 2 | 3 2 . Influence Increases 90 | 20 50 20 Destroy 0b10 Robot/C 80 | 20 40 20 Successful Hack 10 | . 10 . Influence Decreases 90 | 10 60 20 Entered New Map 4 | . 4 . Time Decay 66 | 10 56 . Lost Part 20 | . . 20 Squads Dispatched 1 | . 1 . Investigation 1 | . 1 . Extermination . | . . . Reinforcement . | . . . Assault . | . . . Garrison . | . . . Intercept . | . . . Searches Triggered . | . . . Construction Impeded . | . . . Haulers Reinforced . | . . . Active Scanning Responses . | . . . Cargo Convoy Interrupts . | . . . Stealth | -11 -10 -10 --------- Run | Yrd Mat Sub Distress Signals . | . . . Communications Jammed . | . . . Distress Signals . | . . . Times Spotted 11 | 1 2 8 Peak Tracking Total 6 | 1 2 6 Tactical Retreats . | . . . Traps | -11 -10 -10 ------- Run | Yrd Mat Sub Traps Triggered 4 | . 4 . Indirectly . | . . . Trap Hack Attempts . | . . . Triggered . | . . . Disarmed . | . . . Reprogrammed . | . . . Reused . | . . . Traps Extracted . | . . . Installed . | . . . Triggered . | . . . Machines | -11 -10 -10 ---------- Run | Yrd Mat Sub Machines Disabled 2 | . . 2 Max in Single Turn 1 | . . 1 Machines Repaired . | . . . Machines Dismantled . | . . . Machines Sabotaged . | . . . Overloaded Fab Kills . | . . . Hacking | -11 -10 -10 --------- Run | Yrd Mat Sub Machines Accessed 3 | . 3 . Terminals 3 | . 3 . Fabricators . | . . . Repair Stations . | . . . Recycling Units . | . . . Scanalyzers . | . . . Garrison Access . | . . . Total Hacks 12 | . 12 . Successful 10 | . 10 . Failed 2 | . 2 . Catastrophic . | . . . Database Lockouts . | . . . Manual 2 | . 2 . Terminals 12 | . 12 . Fabricators . | . . . Repair Stations . | . . . Recycling Units . | . . . Scanalyzers . | . . . Garrison Access . | . . . Terminal Hacks 10 | . 10 . Record 4 | . 4 . Robot Analysis 1 | . 1 . Prototype ID Bank 1 | . 1 . Alert Level 1 | . 1 . Locate Traps 1 | . 1 . Surveillance Status 1 | . 1 . Zone Layout 1 | . 1 . Fabricator Hacks . | . . . Repair Station Hacks . | . . . Recycling Unit Hacks . | . . . Scanalyzer . | . . . Garrison Access Hacks . | . . . Unauthorized Hacks . | . . . Terminals . | . . . Fabricators . | . . . Repair Stations . | . . . Recycling Units . | . . . Scanalyzers . | . . . Garrison Access . | . . . Data Cores Recovered . | . . . Used . | . . . Hacking Detections 3 | . 3 . Full Trace Events 1 | . 1 . Feedback Events . | . . . Feedback Blocked . | . . . Robot Schematics Acquired . | . . . Robots Built . | . . . Authchips . | . . . Time . | . . . Total Robot Build Rating . | . . . Part Schematics Acquired . | . . . Parts Built . | . . . Authchips . | . . . Time . | . . . Total Part Build Rating . | . . . Part Studies Acquired . | . . . Parts Repaired . | . . . Time . | . . . Parts Recycled . | . . . Recycled Matter . | . . . Retrieved Matter . | . . . Retrieved Components . | . . . Parts Scanalyzed . | . . . Part Schematics Acquired . | . . . Parts Damaged . | . . . Bothacking | -11 -10 -10 ------------ Run | Yrd Mat Sub Used RIF Installer . | . . . Robots Hacked . | . . . Non-combat . | . . . Combat . | . . . Robot Hacks Applied . | . . . Relay Couplers Released . | . . . Fabnet Peak Effective % . | . . . Robots Rewired . | . . . Allies Hacked . | . . . Hacks Repelled . | . . . Allies | -11 -10 -10 -------- Run | Yrd Mat Sub Total Allies . | . . . Largest Group . | . . . Highest-Rated Group . | . . . Highest-Rated Ally . | . . . Total Orders . | . . . Ally Attacks . | . . . Total Damage . | . . . Kills . | . . . Allies Corrupted . | . . . Allies Melted . | . . . Intel | -11 -10 -10 ------- Run | Yrd Mat Sub Active Infowar (turns) 594 | . 547 47 Optics 412 | . 412 . Seismic 182 | . 135 47 ECM 12 | . 12 . Robot Analysis Total 1 | . 1 . Derelict Logs Recovered 1 | . . 1 Drone Launches . | . . . Drone Recoveries . | . . . Exploration | -11 -10 -10 ------------- Run | Yrd Mat Sub Turns Passed 861 | 122 617 122 Spaces Moved 659 | 98 476 85 Core 40 | 38 . 2 Treads . | . . . Legs 568 | 9 476 83 Wheels 51 | 51 . . Hover . | . . . Flight . | . . . Fastest Speed 50 | 50 120 120 Average Speed 113 | 72 120 121 Slowest Speed 200 | 120 120 200 Overloaded Moves . | . . . Propulsion Burnouts . | . . . Robots Hopped . | . . . Potential Cave-ins . | . . . Cave-ins Triggered 1 | . . 1 Exploration Rate (%) 17 | 5 39 7 Regions Visited 2 Branch Regions 1 Pre-discovered Areas . | . . . Known Exits Taken . | . . . Unknown Exits Taken 2 | 1 1 . Scrap Searched . | . . . Spaces Dug . | . . . Terrain Destroyed 16 | . . 16 Melee . | . . . Projectile . | . . . AOE 16 | . . 16 Terrain Rammed . | . . . Walls Destroyed . | . . . Machines Disabled . | . . . Actions | -11 -10 -10 --------- Run | Yrd Mat Sub Total 749 | 129 521 99 Wait 8 | 1 . 7 Move 657 | 97 475 85 Hop . | . . . Pick Up 33 | 10 21 2 Fast Attach . | . . . Attach 12 | 5 7 . Detach 1 | . 1 . Swap 14 | 8 6 . Drop 11 | . 9 2 Fire 13 | 8 2 3 Melee . | . . . Ram . | . . . Kick . | . . . Crush . | . . . Escape Stasis . | . . . Rewire . | . . . Trap . | . . . Miscellaneous . | . . . Route ------- -11/Scrapyard -10/Materials (discovered 3 exits: [Mat] / [*Min] / [*Sub]) -10/Subcaves (discovered 1 exit: [*Rec]) History --------- Turn | Location | Event 2 | -11/Scrapyard | Met Revision 17 76 | -11/Scrapyard | Discovered new exit (range 8) 123 | -11/Scrapyard | Entered Materials 306 | -10/Materials | Build established: Mutant 595 | -10/Materials | Discovered new exit (range 7) 658 | -10/Materials | Discovered new exit (range 9) 702 | -10/Materials | Discovered new exit (range 20) 740 | -10/Materials | Entered Subcaves 754 | -10/Subcaves | Learned 2 Materials zone layouts 787 | -10/Subcaves | Crushed by falling debris 787 | -10/Subcaves | Core integrity fell below 50% 837 | -10/Subcaves | Discovered new exit (range 10) 854 | -10/Subcaves | Core integrity fell below 20% 862 | -10/Subcaves | Destroyed by FR-FUS(h) with Battle Rifle Last Messages --------------- Dropped ECM Suite. Acquired 1 matter. Lgt. Assault Rifle fries itself beyond repair. HV Slug penetrates Wall. Shotgun destroyed. Aluminum Leg destroyed. Lgt. Assault Rifle fries itself beyond repair. HV Slug penetrates Wall. Aluminum Leg destroyed. Acquired Lgt. Ion Engine. Flight Unit fries itself beyond repair. Overweight warning: You are carrying more than your current propulsion can efficiently support, which slows movement; see status page ('s') or the top of the parts list for the specific mass vs. support values. HV Slug penetrates S-10 Pest. S-10 Pest knocked back. HV Slug penetrates Earth. [Achievement: First Step to Greatness] Map ----- +----------------------------------------------------+ | ????????????????????????????????????????? ##????? | | ???????????????????????????????????????? #????? | | ???????????????????????????????????????? #????? | | ???????????????????????????#???????????? ##???? | | ???????????????????????????# ??????????# #???? | | ???????????????????????????# ?????????# #???? | | ???????????????????????????# ??????## ????? | | ???????????????????????#???# #?##### #??????? | | ???????????????????? ## ## # ## #??????? | | ??????????????????? [ #??????? | | ??????????????????? #???????? | | ?????????????????????????# # # #???????? | | ??????????????????????????##???# ##???????? | | ????????????????????????#?# #??## ####?????? | | ????????????????# ## ## # #### #?????? | | ???????????????? ## ## #????? | | ???????????????? ##?# #???? | | ??????????????????# # # # #??? #???? | | ????????????????????????#### ##??? #???? | | ???????????????????????????## ##??# #???? | | ????????????????????????????# ###?# ##???? | | ????????????????????????######## ##?##????? | | ?????????????????????#?## ###### ###?????? | | ?????????????????????# # < ###### #?????? | | ??????????????????????# """"#?# ##?????? | | ??????????????????????# @ "#?# #??????? | | ??????????????????????## t t "#?# ##??#???? | | ???????????????????????# s% #?## #?? #???? | | ???????????????????????## ! #??# ## ##??? | | ????????????????????????#" s "#??# #??? | | ????????????????????????#### =%####### ##??? | | ??????????????????????????## h*### ###???? | | ?????????????????????????## ##?????? | | ?????????????????????????# #??????? | | ???????????????????????# # ### #??????? | | ???????????????????????## ####?## #??????? | | ??????????????????????# # # #?????# ##??????? | | ??????????????????????#######??????# #???????? | | ??????????????????????????????????? ##???????? | | ??????????????????????????????????? #????????? | | ?????????????????????????????????? #????????? | | ??????????????????????????????????## ##????????? | | ???????????????????????????????????## ?????????? | | ????????????????????????????????????# ?????????? | | ????????????????????????????????????# #????????? | | ????????????????????????????????????? ????????? | | ????????????????????????????????????? ????????? | | ????????????????????????????????????? #?????????? | | ?????????????????????????????????????????????????? | | ?????????????????????????????????????????????????? | +----------------------------------------------------+ Best States ------------- Heat Dissipation 25 Energy Generation 10 Energy Capacity 125 Matter Stores 300 Matter Capacity 450 Sight Range 18 Terrain Scan Density 10 ECM Strength 1 Evasion (%) 55 Item Schematics ----------------- None Robot Schematics ------------------ None Fabricated ------------ Nothing Repaired ---------- Nothing Studied --------- None Alien Tech Used ----------------- None Achievements -------------- First Step to Greatness One Hack Too Far Spot Them First Unlikely Earthworm Challenges ------------ None Game ------ Seed CobblerSpacefoldDrive Manual? 0 Play Time 00:29:22 Cumulative 0.4 hours Start 2026.07.10 @ 23:18:42 End 2026.07.10 @ 23:50:51 Sessions 1 Manual Loads 0 Difficulty Rogue Special Mode None Game No. 1 Rogue 1 Adventurer 0 Explorer 0 Win Type - Total 0 Types 0/0/0/0/0/0/0/0/0/0 Lore% 0 Gallery% 1 Achievement% 0 Wizard Run 0 Options --------- Layout 1 ASCII 0 Keyboard 0 Movement Arrows Keybinds 0 Fullscreen 1 Font 24/Smallcaps Map View 50x35 Zoom Use 0% Tactical HUD 0 Map Filters NONE Filters NONE Steam 1 RUN: d3e358ae-d91d-4f9d-b8a0-eadff71ebb42